fUST/lending_fUST_20240524
["ID","MTS","AMOUNT","RATE_DAILY","PERIOD"]
[327824382,1716515432408,-513.31232506,0.0002441,2]
[327824384,1716515432417,-151.0,0.00024472,5]
[327824386,1716515432426,-10363.27518726,0.00024557,11]
[327824387,1716515432435,-1465.20528964,0.00024558,3]
[327824389,1716515432444,-642.52182625,0.00024558,7]
[327824391,1716515432453,-873.32,0.00024647,3]
[327824392,1716515432462,-176.49966876,0.00024655,2]
[327824393,1716515432473,-233.0423654,0.00024655,2]
[327824394,1716515432482,-946.38470941,0.00024655,2]
[327824395,1716515432492,-238.0906356,0.00024656,2]
[327824396,1716515432503,-215.24387785,0.00024656,2]
[327824397,1716515432512,-1980.52,0.00024656,4]
[327824398,1716515432521,-1980.52,0.00024656,4]
[327824399,1716515432530,-1980.52,0.00024656,4]
[327824400,1716515432540,-1980.52,0.00024656,4]
[327824401,1716515432550,-1980.52,0.00024656,4]
[327824402,1716515432559,-1980.52,0.00024656,4]
[327824403,1716515432568,-1980.52,0.00024656,4]
[327824404,1716515432576,-1693.23786835,0.00024657,11]
[327824405,1716515432585,-605.57,0.00024657,2]
[327824406,1716515432594,-500.0,0.00024657,2]
[327824407,1716515432604,-500.0,0.00024657,2]
[327824408,1716515432614,-500.0,0.00024657,2]
[327824409,1716515432623,-500.0,0.00024657,2]
[327824410,1716515432632,-500.0,0.00024657,2]
[327824411,1716515432642,-500.0,0.00024657,2]
[327824412,1716515432651,-500.0,0.00024657,2]
[327824413,1716515432661,-519.48582686,0.00024657,2]
[327824414,1716515432670,-500.0,0.00024657,2]
[327824415,1716515432679,-560.58791804,0.00024657,2]
[327824416,1716515432688,-500.0,0.00024657,2]
[327824417,1716515432697,-500.0,0.00024657,2]
[327824418,1716515432707,-500.0,0.00024657,2]
[327824419,1716515432716,-500.0,0.00024657,2]
[327824420,1716515432726,-276.46671506,0.00024657,2]
[327824906,1716515446691,-260.22328494,0.00024657,2]
[327824908,1716515446702,-500.0,0.00024657,2]
[327824910,1716515446711,-500.0,0.00024657,2]
[327824912,1716515446720,-500.0,0.00024657,2]
[327824914,1716515446730,-500.0,0.00024657,2]
[327824916,1716515446739,-832.26,0.00024657,2]
[327824918,1716515446748,-1268.1,0.00024657,2]
[327824920,1716515446757,-500.0,0.00024657,2]
[327824922,1716515446766,-500.0,0.00024657,2]
[327824924,1716515446779,-500.0,0.00024657,2]
[327824926,1716515446788,-529.79,0.00024657,2]
[327824928,1716515446799,-500.0,0.00024657,2]
[327824930,1716515446808,-500.0,0.00024657,2]
[327824932,1716515446817,-500.0,0.00024657,2]
[327824934,1716515446827,-1322.38,0.00024657,2]
[327824936,1716515446836,-932.13,0.00024657,2]
[327824938,1716515446845,-500.0,0.00024657,2]
[327824940,1716515446854,-529.23,0.00024657,2]
[327824943,1716515446866,-505.26888539,0.00024657,2]
[327824945,1716515446876,-661.21,0.00024657,2]
[327824947,1716515446885,-500.0,0.00024657,2]
[327824949,1716515446894,-500.0,0.00024657,2]
[327824951,1716515446903,-1585.36,0.00024657,2]
[327824953,1716515446913,-1124.81,0.00024657,2]
[327824954,1716515446922,-500.0,0.00024657,2]
[327824956,1716515446931,-500.0,0.00024657,2]
[327824959,1716515446940,-500.0,0.00024657,2]
[327824961,1716515446950,-500.0,0.00024657,2]
[327824963,1716515446961,-500.0,0.00024657,2]
[327824965,1716515446970,-292.38030704,0.00024657,2]
[327824967,1716515446979,-575.04,0.00024657,2]
[327824969,1716515446992,-500.0,0.00024657,2]
[327824971,1716515447002,-861.29,0.00024657,2]
[327824973,1716515447011,-500.0,0.00024657,2]
[327824975,1716515447021,-503.21652271,0.00024657,2]
[327824977,1716515447030,-500.0,0.00024657,2]
[327824979,1716515447039,-500.0,0.00024657,2]
[327824981,1716515447050,-718.84,0.00024657,2]
[327824983,1716515447059,-844.47,0.00024657,2]
[327824985,1716515447069,-603.01,0.00024657,2]
[327824987,1716515447079,-2102.63,0.00024657,2]
[327824989,1716515447088,-1053.25,0.00024657,2]
[327824991,1716515447097,-500.0,0.00024657,2]
[327824993,1716515447107,-500.0,0.00024657,2]
[327824995,1716515447117,-502.36194601,0.00024657,2]
[327824997,1716515447126,-500.0,0.00024657,2]
[327824999,1716515447135,-369.39,0.00024657,2]
[327825001,1716515447144,-500.0,0.00024657,2]
[327825003,1716515447154,-503.85427615,0.00024657,2]
[327825005,1716515447164,-500.0,0.00024657,2]
[327825007,1716515447173,-2694.0,0.00024657,2]
[327825009,1716515447182,-500.0,0.00024657,2]
[327825011,1716515447192,-500.0,0.00024657,2]
[327825013,1716515447201,-183.85333001,0.00024657,2]
[327825015,1716515447211,-500.0,0.00024657,2]
[327825017,1716515447220,-500.0,0.00024657,2]
[327825019,1716515447229,-500.0,0.00024657,2]
[327825021,1716515447239,-1963.88,0.00024657,2]
[327825023,1716515447248,-1859.43,0.00024657,2]
[327825025,1716515447258,-1284.88,0.00024657,2]
[327825027,1716515447267,-500.0,0.00024657,2]
[327825029,1716515447276,-735.42,0.00024657,2]
[327825031,1716515447286,-500.0,0.00024657,2]
[327825033,1716515447297,-2102.3,0.00024657,2]
[327825035,1716515447307,-422.63565029,0.00024657,2]
[327825037,1716515447316,-500.0,0.00024657,2]
[327825039,1716515447325,-500.0,0.00024657,2]
[327825041,1716515447335,-500.0,0.00024657,2]
[327825043,1716515447344,-2433.45,0.00024657,2]
[327825045,1716515447354,-544.9504277,0.00024657,2]
[327825047,1716515447363,-500.0,0.00024657,2]
[327825049,1716515447372,-500.0,0.00024657,2]
[327825051,1716515447381,-1980.52,0.00024657,4]
[327825053,1716515447391,-1980.52,0.00024657,4]
[327825055,1716515447399,-1980.52,0.00024657,4]
[327825057,1716515447409,-500.0,0.00024657,2]
[327825059,1716515447418,-500.0,0.00024657,2]
[327825061,1716515447428,-3242.71,0.00024657,2]
[327825063,1716515447437,-2180.66,0.00024657,2]
[327825065,1716515447446,-1174.07,0.00024657,2]
[327825067,1716515447456,-500.0,0.00024657,2]
[327825069,1716515447465,-528.7194668,0.00024657,2]
[327825071,1716515447474,-500.0,0.00024657,2]
[327825073,1716515447484,-500.0,0.00024657,2]
[327825075,1716515447494,-584.51,0.00024657,2]
[327825077,1716515447503,-501.94283476,0.00024657,2]
[327825079,1716515447512,-3909.81,0.00024657,2]
[327825081,1716515447522,-325.28752082,0.00024657,2]
[327825083,1716515447531,-500.0,0.00024657,2]
[327825085,1716515447541,-1223.22,0.00024657,2]
[327825087,1716515447551,-840.36,0.00024657,2]
[327825089,1716515447560,-500.0,0.00024657,2]
[327825091,1716515447570,-1585.78,0.00024657,2]
[327825092,1716515447581,-151.0,0.00024657,2]
[327825094,1716515447590,-151.0,0.00024657,2]
[327825096,1716515447600,-151.732864,0.00024657,2]
[327825098,1716515447610,-655.73,0.00024657,2]
[327825100,1716515447619,-500.0,0.00024657,2]
[327825102,1716515447628,-603.77,0.00024657,2]
[327825104,1716515447638,-500.0,0.00024657,2]
[327825106,1716515447647,-286.07745067,0.00024657,2]
[327825109,1716515447657,-500.0,0.00024657,2]
[327825111,1716515447666,-511.26638848,0.00024657,2]
[327825113,1716515447676,-500.0,0.00024657,2]
[327825115,1716515447686,-500.0,0.00024657,3]
[327825117,1716515447695,-500.0,0.00024657,4]
[327825119,1716515447705,-500.0,0.00024657,5]
[327825121,1716515447714,-500.0,0.00024657,6]
[327825122,1716515447723,-500.0,0.00024657,7]
[327825124,1716515447732,-500.0,0.00024657,2]
[327825126,1716515447741,-500.0,0.00024657,8]
[327825127,1716515447751,-500.0,0.00024657,9]
[327825128,1716515447760,-500.0,0.00024657,10]
[327825129,1716515447769,-2672.66,0.00024657,2]
[327825130,1716515447778,-1512.88,0.00024657,2]
[327825131,1716515447796,-2617.6,0.00024657,2]
[327825132,1716515447806,-500.99453708,0.00024657,2]
[327825133,1716515447816,-500.67923099,0.00024657,2]
[327825134,1716515447824,-500.0,0.00024657,2]
[327825135,1716515447834,-503.01523184,0.00024657,2]
[327825136,1716515447842,-504.14088163,0.00024657,2]
[327825137,1716515447852,-500.0,0.00024657,2]
[327825138,1716515447861,-1775.74,0.00024657,2]
[327825140,1716515447870,-5536.71,0.00024657,2]
[327825142,1716515447879,-500.0,0.00024657,2]
[327825144,1716515447888,-500.0,0.00024657,2]
[327825146,1716515447898,-500.0,0.00024657,2]
[327825148,1716515447907,-791.75,0.00024657,2]
[327825150,1716515447916,-707.01,0.00024657,2]
[327825152,1716515447926,-500.0,0.00024657,2]
[327825154,1716515447935,-1048.09,0.00024657,2]
[327825156,1716515447944,-500.0,0.00024657,2]
[327825158,1716515447954,-500.0,0.00024657,3]
[327825160,1716515447963,-500.0,0.00024657,4]
[327825162,1716515447972,-500.0,0.00024657,5]
[327825164,1716515447981,-500.0,0.00024657,6]
[327825166,1716515447991,-503.26240262,0.00024657,2]
[327825168,1716515448000,-500.0,0.00024657,7]
[327825170,1716515448009,-500.0,0.00024657,8]
[327825172,1716515448018,-500.0,0.00024657,9]
[327825174,1716515448027,-500.0,0.00024657,10]
[327825176,1716515448036,-503.25845721,0.00024657,2]
[327825178,1716515448048,-500.0,0.00024657,2]
[327825180,1716515448057,-2526.61,0.00024657,2]
[327825182,1716515448067,-500.0,0.00024657,2]
[327825184,1716515448076,-500.0,0.00024657,2]
[327825186,1716515448086,-302.00229142,0.00024657,2]
[327825188,1716515448095,-500.0,0.00024657,2]
[327825190,1716515448104,-905.89,0.00024657,2]
[327825192,1716515448114,-500.0,0.00024657,2]
[327825194,1716515448123,-515.51,0.00024657,2]
[327825196,1716515448132,-500.0,0.00024657,2]
[327825198,1716515448142,-1518.42,0.00024657,2]
[327825200,1716515448151,-500.0,0.00024657,2]
[327825202,1716515448160,-5975.77,0.00024657,2]
[327825204,1716515448170,-226.4907535,0.00024657,2]
[327825206,1716515448179,-500.0,0.00024657,2]
[327825208,1716515448188,-2282.64,0.00024657,2]
[327825210,1716515448198,-502.34602454,0.00024657,2]
[327825212,1716515448207,-500.0,0.00024657,2]
[327825214,1716515448216,-2979.67,0.00024657,2]
[327825216,1716515448225,-500.0,0.00024657,2]
[327825218,1716515448234,-1010.35,0.00024657,2]
[327825220,1716515448244,-500.0,0.00024657,2]
[327825222,1716515448254,-602.67,0.00024657,2]
[327825223,1716515448263,-500.0,0.00024657,2]
[327825225,1716515448272,-500.0,0.00024657,2]
[327825227,1716515448282,-500.0,0.00024657,2]
[327825229,1716515448291,-230.2143659,0.00024657,2]
[327825232,1716515448302,-500.0,0.00024657,2]
[327825234,1716515448311,-500.0,0.00024657,2]
[327825236,1716515448321,-500.0,0.00024657,2]
[327825238,1716515448330,-16944.86,0.00024657,2]
[327825240,1716515448347,-554.19167145,0.00024657,2]
[327825486,1716515516078,24647.38747162,0.00020913,2]
[327825498,1716516451116,-155.71554244,0.00020913,2]
[327825499,1716516451139,-170.6069013,0.00022904,2]
[327825500,1716516451160,-153.0,0.000239,2]
[327825501,1716516451181,-306.0,0.000239,2]
[327825502,1716516451202,-159.7898494,0.00024384,2]
[327825503,1716516451222,-166.99079994,0.00024557,2]
[327825504,1716516451243,-158.84173499,0.00024557,2]
[327825505,1716516451264,-375.51693845,0.00024629,2]
[327825506,1716516451286,-1155.3,0.00024656,4]
[327825507,1716516451307,-1155.3,0.00024656,4]
[327825508,1716516451327,-1155.3,0.00024656,4]
[327825509,1716516451348,-578.75770031,0.00024656,4]
[327825562,1716516638821,-151.0,0.00023876,5]
[327825563,1716516638830,-151.0,0.00024115,5]
[327825565,1716516638839,-406.24926,0.00024384,2]
[327825567,1716516638848,-158.84173493,0.00024557,2]
[327825569,1716516638857,-986.77,0.00024656,4]
[327825570,1716516638866,-986.77,0.00024656,4]
[327825571,1716516638874,-986.77,0.00024656,4]
[327825572,1716516638883,-986.77,0.00024656,4]
[327825573,1716516638892,-986.77,0.00024656,4]
[327825574,1716516638900,-747.30258987,0.00024656,4]
[327825575,1716516638911,-239.46741013,0.00024656,4]
[327825576,1716516638920,-846.61893418,0.00024657,11]
[327825577,1716516638929,-2330.5647559,0.00024657,11]
[327825664,1716516642410,-2851.07283773,0.00024657,11]
[327825665,1716516642419,-500.0,0.00024657,2]
[327825666,1716516642429,-43.15393192,0.00024657,2]
[327825809,1716516644162,-485.39606808,0.00024657,2]
[327825811,1716516644172,-500.0,0.00024657,2]
[327825813,1716516644182,-500.0,0.00024657,2]
[327825815,1716516644191,-500.0,0.00024657,2]
[327825819,1716516644203,-500.0,0.00024657,2]
[327825821,1716516644212,-500.0,0.00024657,2]
[327825824,1716516644221,-500.0,0.00024657,2]
[327825826,1716516644231,-500.0,0.00024657,2]
[327825829,1716516644242,-500.0,0.00024657,2]
[327825831,1716516644252,-502.2234212,0.00024657,2]
[327825832,1716516644262,-500.0,0.00024657,2]
[327825834,1716516644271,-274.75695922,0.00024657,2]
[327825853,1716516647091,-225.24304078,0.00024657,2]
[327825854,1716516647101,-622.56120894,0.00024657,2]
[327825855,1716516647110,-846.89,0.00024657,2]
[327825856,1716516647122,-603.5,0.00024657,2]
[327825857,1716516647131,-500.0,0.00024657,2]
[327825858,1716516647141,-354.0,0.00024657,2]
[327825859,1716516647151,-500.0,0.00024657,2]
[327825860,1716516647165,-500.0,0.00024657,2]
[327825861,1716516647175,-158.24224987,0.00024657,2]
[327825865,1716517747141,-3096.66392062,0.00020913,2]
[327825866,1716517797724,168.44134988,0.000189,2]
[327826495,1716517844279,-168.44134988,0.000239,2]
[327826496,1716517844289,-695.0,0.00024,2]
[327826498,1716517844299,-3501.33018983,0.00024,2]
[327826500,1716517844309,-385.936797,0.00024384,2]
[327826502,1716517844319,-153.0,0.000244,2]
[327826503,1716517844329,-276.05541924,0.00024655,2]
[327826504,1716517844338,-287.39375807,0.00024655,2]
[327826505,1716517844348,-2064.44261375,0.00024655,2]
[327826506,1716517844357,-155.21711979,0.00024656,2]
[327826507,1716517844367,-740.08,0.00024656,4]
[327826508,1716517844376,-183.38216039,0.00024656,4]
[327826509,1716517846763,-556.69783961,0.00024656,4]
[327826511,1716517846773,-740.08,0.00024656,4]
[327826513,1716517846784,-740.08,0.00024656,4]
[327826515,1716517846793,-740.08,0.00024656,4]
[327826517,1716517846802,-740.08,0.00024656,4]
[327826518,1716517846812,-423.30946709,0.00024657,11]
[327826519,1716517846821,-2590.81879682,0.00024657,11]
[327826520,1716517846831,-500.0,0.00024657,2]
[327826521,1716517846840,-501.05482345,0.00024657,2]
[327826522,1716517846849,-500.0,0.00024657,2]
[327826523,1716517846859,-500.0,0.00024657,2]
[327826524,1716517846868,-500.0,0.00024657,2]
[327826525,1716517846878,-500.0,0.00024657,2]
[327826526,1716517846887,-500.0,0.00024657,2]
[327826527,1716517846897,-500.0,0.00024657,2]
[327826528,1716517846906,-1455.15,0.00024657,2]
[327826529,1716517846916,-500.0,0.00024657,2]
[327826530,1716517846927,-500.0,0.00024657,2]
[327826531,1716517846936,-1007.05,0.00024657,2]
[327826532,1716517846946,-500.0,0.00024657,2]
[327826533,1716517846956,-500.0,0.00024657,2]
[327826534,1716517846965,-500.0,0.00024657,2]
[327826535,1716517846974,-500.0,0.00024657,2]
[327826536,1716517846985,-500.37336255,0.00024657,2]
[327826537,1716517846995,-500.0,0.00024657,2]
[327826538,1716517847005,-151.0,0.00024657,2]
[327826539,1716517847016,-152.271185,0.00024657,2]
[327826540,1716517847025,-500.0,0.00024657,2]
[327826541,1716517847035,-535.48,0.00024657,2]
[327826542,1716517847045,-500.0,0.00024657,2]
[327826543,1716517847055,-533.49,0.00024657,2]
[327826545,1716517847064,-263.2494436,0.00024657,2]
[327826551,1716518248370,150.81901718,0.00024988,30]
[327826552,1716518841121,-488.15715349,0.00018,2]
[327826553,1716518852143,-231.55865012,0.00018,2]
[327826563,1716518945144,-10221.79641706,0.00020912,2]
[327826564,1716518945167,-1720.36884479,0.00020913,2]
[327826565,1716519003382,303.6707029,0.000189,2]
[327826612,1716519032200,-16459.79366535,0.00023,2]
[327826613,1716519032210,-896.31216814,0.00023184,2]
[327826614,1716519032219,-239.6980219,0.00023185,2]
[327826615,1716519032228,-303.6707029,0.000239,2]
[327826616,1716519032238,-366.639957,0.00024384,2]
[327826617,1716519032247,-291.4199223,0.00024438,2]
[327826618,1716519032256,-766.32239893,0.00024557,2]
[327826619,1716519032266,-158.84173493,0.00024557,2]
[327826620,1716519032275,-517.24637076,0.00024558,3]
[327826621,1716519032284,-155.0,0.00024655,2]
[327826622,1716519032294,-323.74766127,0.00024655,2]
[327826623,1716519032304,-166.01446844,0.00024656,2]
[327826624,1716519032313,-364.25182738,0.00024656,2]
[327826625,1716519032322,-500.0,0.00024656,2]
[327826626,1716519032331,-500.93647433,0.00024656,2]
[327826627,1716519032340,-500.0,0.00024656,2]
[327826628,1716519032349,-3275.84522556,0.00024656,11]
[327826629,1716519032358,-500.333,0.00024657,2]
[327826630,1716519032367,-211.985,0.00024657,2]
[327826631,1716519032377,-152.263,0.00024657,2]
[327826632,1716519032386,-29769.44492509,0.00024657,11]
[327826633,1716519032395,-500.0,0.00024657,2]
[327826634,1716519032404,-500.0,0.00024657,2]
[327826635,1716519032414,-504.03197293,0.00024657,2]
[327826636,1716519032424,-500.0,0.00024657,2]
[327826637,1716519032433,-500.0,0.00024657,2]
[327826638,1716519032442,-500.0,0.00024657,2]
[327826639,1716519032451,-500.0,0.00024657,2]
[327826640,1716519032460,-500.0,0.00024657,2]
[327826641,1716519032469,-500.0,0.00024657,2]
[327826642,1716519032478,-500.0,0.00024657,2]
[327826643,1716519032487,-500.0,0.00024657,2]
[327826644,1716519032496,-500.0,0.00024657,2]
[327826645,1716519032505,-502.39089655,0.00024657,2]
[327826646,1716519032516,-500.0,0.00024657,2]
[327826647,1716519032526,-503.95524221,0.00024657,2]
[327826648,1716519032536,-500.0,0.00024657,2]
[327826649,1716519032545,-514.33,0.00024657,2]
[327826650,1716519032555,-500.0,0.00024657,2]
[327826651,1716519032565,-504.15801548,0.00024657,2]
[327826652,1716519032575,-500.0,0.00024657,2]
[327826653,1716519032585,-500.0,0.00024657,2]
[327826654,1716519032595,-500.0,0.00024657,2]
[327826655,1716519032604,-505.59807746,0.00024657,2]
[327826656,1716519032614,-570.62,0.00024657,2]
[327826657,1716519032625,-961.36,0.00024657,2]
[327826658,1716519032634,-500.0,0.00024657,2]
[327826659,1716519032644,-993.13,0.00024657,2]
[327826660,1716519032653,-500.0,0.00024657,2]
[327826661,1716519032663,-831.33,0.00024657,2]
[327826662,1716519032673,-159.447312,0.00024657,2]
[327826663,1716519032682,-500.0,0.00024657,2]
[327826664,1716519032691,-502.78746788,0.00024657,2]
[327826665,1716519032702,-500.0,0.00024657,2]
[327826666,1716519032711,-500.0,0.00024657,2]
[327826667,1716519032723,-506.52,0.00024657,2]
[327826668,1716519032734,-934.21,0.00024657,2]
[327826669,1716519032744,-1240.27,0.00024657,2]
[327826670,1716519032754,-500.0,0.00024657,2]
[327826671,1716519032764,-1325.38,0.00024657,2]
[327826672,1716519032776,-500.0,0.00024657,2]
[327826673,1716519032787,-661.16,0.00024657,2]
[327826674,1716519032797,-500.0,0.00024657,2]
[327826675,1716519032807,-500.0,0.00024657,2]
[327826676,1716519032816,-500.0,0.00024657,2]
[327826677,1716519032826,-1588.9,0.00024657,2]
[327826678,1716519032836,-500.0,0.00024657,2]
[327826679,1716519032845,-500.0,0.00024657,2]
[327826680,1716519032855,-363.81331403,0.00024657,2]
[327826681,1716519032865,-800.49,0.00024657,2]
[327826682,1716519032876,-500.0,0.00024657,2]
[327826683,1716519032885,-500.0,0.00024657,2]
[327826684,1716519032895,-500.0,0.00024657,2]
[327826685,1716519032905,-500.0,0.00024657,2]
[327826686,1716519032915,-500.0,0.00024657,2]
[327826687,1716519032926,-1126.2,0.00024657,2]
[327826688,1716519032938,-500.0,0.00024657,2]
[327826689,1716519032954,-578.36,0.00024657,2]
[327826690,1716519032963,-688.89,0.00024657,2]
[327826691,1716519032972,-500.0,0.00024657,2]
[327826692,1716519032983,-811.6,0.00024657,2]
[327826693,1716519032993,-500.0,0.00024657,2]
[327826694,1716519033003,-1009.36,0.00024657,2]
[327826695,1716519033012,-500.0,0.00024657,2]
[327826696,1716519033022,-861.39,0.00024657,2]
[327826697,1716519033031,-500.0,0.00024657,2]
[327826698,1716519033040,-500.0,0.00024657,2]
[327826699,1716519033050,-500.0,0.00024657,2]
[327826700,1716519033059,-1882.05,0.00024657,2]
[327826701,1716519033069,-2015.02,0.00024657,2]
[327826702,1716519033078,-339.25,0.00024657,2]
[327826703,1716519033088,-500.0,0.00024657,2]
[327826704,1716519033097,-500.0,0.00024657,2]
[327826705,1716519033107,-500.0,0.00024657,2]
[327826706,1716519033116,-1696.78066222,0.00024657,2]
[327826733,1716519041581,-379.89167784,0.00024656,2]
[327826734,1716519041591,-150.524,0.00024657,2]
[327826736,1716519041600,-85.17933778,0.00024657,2]
[327826738,1716519041610,-500.0,0.00024657,2]
[327826739,1716519041619,-555.0,0.00024657,2]
[327826740,1716519041630,-500.0,0.00024657,2]
[327826741,1716519041639,-1231.34,0.00024657,2]
[327826742,1716519041649,-704.77,0.00024657,2]
[327826743,1716519041657,-2014.71,0.00024657,2]
[327826744,1716519041668,-500.0,0.00024657,2]
[327826745,1716519041678,-984.20720438,0.00024657,2]
[327826790,1716519043710,-348.307959,0.00024384,2]
[327826791,1716519043720,-1597.54279562,0.00024657,2]
[327826793,1716519043731,-500.0,0.00024657,2]
[327826794,1716519043741,-2332.05,0.00024657,2]
[327826795,1716519043751,-500.0,0.00024657,2]
[327826796,1716519043762,-500.0,0.00024657,2]
[327826797,1716519043773,-500.0,0.00024657,2]
[327826798,1716519043782,-401.32899343,0.00024657,2]
[327826817,1716519400658,-170.145779,0.00027671,41]
[327826818,1716519400680,-4.854221,0.00027671,80]
[327826826,1716519586693,168.527705,0.00027671,120]
[327826828,1716520032143,-420.67629535,0.00018,2]
[327826834,1716520154151,-896.31216814,0.00019999,2]
[327826835,1716520154172,-24029.34370583,0.0002,2]
[327826836,1716520175114,896.31216814,0.00020913,2]
[327826838,1716520193104,896.31216814,0.00020913,2]
[327826841,1716520209841,150.0,0.000189,2]
[327826842,1716520213100,896.31216814,0.00020913,2]
[327826843,1716520223206,168.527705,0.00027671,120]
[327826846,1716520229102,896.31216814,0.00020913,2]
[327826849,1716520234075,-82.16850749,0.00023337,2]
[327826900,1716520242330,-82.28497421,0.00023337,2]
[327826901,1716520242340,-150.0,0.000239,2]
[327826902,1716520242350,-406.0804878,0.00024,2]
[327826931,1716520244487,-293.93578137,0.00024,2]
[327826934,1716520244496,-273.8085664,0.00024372,2]
[327826949,1716520246614,-523.88313126,0.00024372,2]
[327826950,1716520246624,-410.64986005,0.0002441,2]
[327826951,1716520246634,-62133.36519327,0.00024484,2]
[327826952,1716520246643,-157.1161196,0.00024557,2]
[327826953,1716520246653,-279.63876136,0.00024655,2]
[327826954,1716520246663,-10491.73086689,0.00024655,2]
[327826955,1716520246674,-1205.90323231,0.00024656,2]
[327826956,1716520246684,-382.18557479,0.00024656,2]
[327826957,1716520246694,-163.79381776,0.00024656,2]
[327826958,1716520246704,-500.0,0.00024656,2]
[327826959,1716520246714,-461.99075563,0.00024656,2]
[327826960,1716520286533,273.37336231,9.9e-05,2]
[327826961,1716520343929,10000.0,0.00027,30]
[327826962,1716520354160,10000.0,0.00027,30]
[327826963,1716520367171,10000.0,0.00027,30]
[327826964,1716520422040,10000.0,0.00027,30]
[327826966,1716520444513,5338.0,0.00028,120]
[327826992,1716520681238,2701.5,0.00027,30]
[327826997,1716520963774,-687.12980907,0.00020913,2]
[327826998,1716520964191,896.31216814,0.00018,2]
[327826999,1716520986195,896.31216814,0.00020913,2]
[327827000,1716521023713,-896.31216814,0.00020913,2]
[327827004,1716521084195,-761.003868,0.00022105,2]
[327827005,1716521126782,-288.11298665,0.00020913,2]
[327827008,1716521241144,-200.0,0.00020911,2]
[327827009,1716521241166,-190.68358813,0.00020912,2]
[327827010,1716521241186,-360.43967045,0.00020912,2]
[327827011,1716521241205,-187.5525597,0.00020912,2]
[327827012,1716521241224,-496.37627288,0.00020912,2]
[327827013,1716521348186,-416.89118372,0.00020912,2]
[327827014,1716521348205,-155.24232691,0.00020912,2]
[327827015,1716521348225,-826.89846987,0.00020912,2]
[327827016,1716521348245,-303.3486469,0.00020912,2]
[327827017,1716521348264,-187.42513777,0.00020912,2]
[327827018,1716521348283,-515.68562459,0.00020912,2]
[327827019,1716521348304,-7762.7421613,0.00021164,2]
[327827020,1716521348323,-160.48336936,0.00022,2]
[327827054,1716521432939,-751.00386803,0.00023,2]
[327827078,1716521440224,-1261.66040904,0.00023,2]
[327827080,1716521440235,-280.0,0.00023002,2]
[327827081,1716521440246,-431.61210672,0.00023825,2]
[327827083,1716521440257,-188.04894357,0.00024,2]
[327827085,1716521440267,-2000.0,0.00024,2]
[327827087,1716521440277,-155.21644,0.00024131,2]
[327827088,1716521440289,-330.892561,0.00024384,2]
[327827089,1716521440299,-2501.36380127,0.00024388,2]
[327827090,1716521440308,-158.28456968,0.00024557,2]
[327827091,1716521440318,-200.0,0.0002465,7]
[327827092,1716521440329,-93.92116877,0.00024655,2]
[327827095,1716521440494,-61.55815679,0.00024655,2]
[327827096,1716521440504,-106.88319309,0.00024655,2]
[327827106,1716521443014,-75.19812885,0.00024655,2]
[327827107,1716521443025,-6336.86686572,0.00024655,2]
[327827108,1716521443036,-274.46479269,0.00024655,2]
[327827109,1716521443046,-175.21852698,0.00024655,2]
[327827110,1716521443056,-38.00924437,0.00024656,2]
[327827111,1716521443066,-500.0,0.00024656,2]
[327827112,1716521443076,-500.0,0.00024656,2]